fUST/lending_fUST_20250306
["ID","MTS","AMOUNT","RATE_DAILY","PERIOD"]
[355504413,1741207849702,-500.0,0.00040273,9]
[355504415,1741207849712,-677.95,0.00040273,9]
[355504417,1741207849721,-1000.0,0.00040479,5]
[355504419,1741207849731,-1000.0,0.00040479,5]
[355504421,1741207849743,-189.729,0.00040542,58]
[355504423,1741207849752,-500.0,0.00040547,9]
[355504425,1741207849762,-500.0,0.00040547,9]
[355504427,1741207849772,-500.0,0.00040547,9]
[355504429,1741207849783,-500.0,0.00040547,9]
[355504431,1741207849793,-550.5,0.00040547,9]
[355504433,1741207849802,-500.0,0.00040547,9]
[355504434,1741207849811,-500.0,0.00040547,9]
[355504436,1741207849821,-500.0,0.00040547,9]
[355504438,1741207849831,-500.0,0.00040547,9]
[355504440,1741207849840,-500.0,0.00040547,9]
[355504442,1741207849849,-500.0,0.00040547,9]
[355504444,1741207849858,-500.0,0.00040547,9]
[355504446,1741207849867,-500.0,0.00040547,9]
[355504448,1741207849877,-500.0,0.00040547,9]
[355504450,1741207849886,-623.92088525,0.00040547,9]
[355504453,1741207849895,-500.0,0.00040547,9]
[355504454,1741207849906,-151.0,0.00040547,14]
[355504456,1741207849916,-500.0,0.00040547,9]
[355504458,1741207849925,-153.095798,0.00040547,14]
[355504460,1741207849934,-151.0,0.00040547,14]
[355504462,1741207849943,-500.0,0.00040547,9]
[355504464,1741207849952,-151.0,0.00040547,14]
[355504466,1741207849961,-500.0,0.00040547,9]
[355504468,1741207849971,-521.21201604,0.00040547,9]
[355504470,1741207849980,-151.0,0.00040547,14]
[355504472,1741207849989,-157.479341,0.00040547,14]
[355504474,1741207849999,-1798.42,0.00040547,9]
[355504476,1741207850008,-509.48,0.00040547,9]
[355504478,1741207850018,-500.0,0.00040547,9]
[355504480,1741207850027,-163.81735412,0.00040547,9]
[355504482,1741207850037,-500.0,0.00040547,9]
[355504484,1741207850046,-500.0,0.00040547,9]
[355504486,1741207850055,-500.0,0.00040547,9]
[355504488,1741207850065,-500.0,0.00040547,9]
[355504490,1741207850074,-500.0,0.00040547,9]
[355504492,1741207850083,-500.0,0.00040547,9]
[355504494,1741207850092,-500.0,0.00040547,9]
[355504496,1741207850101,-500.0,0.00040547,9]
[355504498,1741207850111,-500.0,0.00040547,9]
[355504500,1741207850120,-1970.49,0.00040547,9]
[355504502,1741207850129,-500.0,0.00040547,9]
[355504504,1741207850139,-500.0,0.00040547,9]
[355504506,1741207850148,-500.0,0.00040547,9]
[355504508,1741207850157,-500.0,0.00040547,9]
[355504510,1741207850168,-1707.61,0.00040547,9]
[355504512,1741207850178,-1509.18,0.00040547,9]
[355504514,1741207850187,-500.0,0.00040547,9]
[355504515,1741207850197,-617.8344499,0.00040547,9]
[355504516,1741207850206,-3741.97,0.00040547,9]
[355504517,1741207850215,-237.27808898,0.00040547,9]
[355504518,1741207850224,-1075.02,0.00040547,9]
[355504519,1741207850233,-1124.74,0.00040547,9]
[355504521,1741207850243,-26395.19,0.00040547,7]
[355504523,1741207850252,-1720.33,0.00040547,9]
[355504525,1741207850261,-500.0,0.00040547,9]
[355504527,1741207850271,-500.0,0.00040547,9]
[355504529,1741207850280,-500.0,0.00040547,9]
[355504531,1741207850289,-629.3,0.00040547,9]
[355504533,1741207850299,-500.0,0.00040547,9]
[355504535,1741207850308,-905.36,0.00040547,9]
[355504537,1741207850317,-520.64,0.00040547,9]
[355504539,1741207850326,-634.73,0.00040547,9]
[355504541,1741207850335,-667.75,0.00040547,9]
[355504543,1741207850345,-2881.98,0.00040547,9]
[355504545,1741207850354,-500.0,0.00040547,9]
[355504547,1741207850363,-500.0,0.00040547,9]
[355504549,1741207850372,-749.96,0.00040547,9]
[355504551,1741207850381,-368.0129223,0.00040547,9]
[355504553,1741207850390,-4449.63,0.00040547,9]
[355504555,1741207850399,-2459.83,0.00040547,9]
[355504557,1741207850408,-500.0,0.00040547,9]
[355504559,1741207850417,-677.95,0.00040547,9]
[355504561,1741207850426,-500.0,0.00040821,9]
[355504562,1741207850442,-500.0,0.00040821,9]
[355504565,1741207850452,-500.0,0.00040821,9]
[355504566,1741207850461,-500.0,0.00040821,9]
[355504569,1741207850471,-550.5,0.00040821,9]
[355504570,1741207850481,-500.0,0.00040821,9]
[355504572,1741207850490,-500.0,0.00040821,9]
[355504575,1741207850499,-500.0,0.00040821,9]
[355504577,1741207850509,-500.0,0.00040821,9]
[355504578,1741207850519,-500.0,0.00040821,9]
[355504581,1741207850528,-500.0,0.00040821,9]
[355504582,1741207850537,-500.0,0.00040821,9]
[355504585,1741207850546,-500.0,0.00040821,9]
[355504586,1741207850555,-500.0,0.00040821,9]
[355504588,1741207850564,-500.0,0.00040821,9]
[355504590,1741207850574,-500.0,0.00040821,9]
[355504592,1741207850583,-500.0,0.00040821,9]
[355504594,1741207850592,-500.0,0.00040821,9]
[355504596,1741207850602,-1798.42,0.00040821,9]
[355504598,1741207850611,-509.48,0.00040821,9]
[355504601,1741207850621,-500.0,0.00040821,9]
[355504603,1741207850631,-500.0,0.00040821,9]
[355504605,1741207850639,-500.0,0.00040821,9]
[355504607,1741207850649,-500.0,0.00040821,9]
[355504609,1741207850658,-500.0,0.00040821,9]
[355504611,1741207850668,-500.0,0.00040821,9]
[355504612,1741207850677,-500.0,0.00040821,9]
[355504615,1741207850687,-500.0,0.00040821,9]
[355504617,1741207850696,-500.0,0.00040821,9]
[355504619,1741207850705,-1970.49,0.00040821,9]
[355504620,1741207850714,-500.0,0.00040821,9]
[355504622,1741207850724,-500.0,0.00040821,9]
[355504624,1741207850733,-170.71528173,0.00040821,9]
[355504627,1741207850747,-500.0,0.00040821,9]
[355504629,1741207850757,-1707.61,0.00040821,9]
[355504631,1741207850767,-1509.18,0.00040821,9]
[355504633,1741207850776,-166.01812427,0.00040821,9]
[355504635,1741207850786,-3741.97,0.00040821,9]
[355504636,1741207850795,-1075.02,0.00040821,9]
[355504638,1741207850805,-1124.74,0.00040821,9]
[355504640,1741207850814,-26395.19,0.00040821,7]
[355504642,1741207850823,-1720.33,0.00040821,9]
[355504644,1741207850833,-500.0,0.00040821,9]
[355504646,1741207850842,-500.0,0.00040821,9]
[355504649,1741207850852,-500.0,0.00040821,9]
[355504650,1741207850861,-500.0,0.00040821,9]
[355504653,1741207850871,-905.36,0.00040821,9]
[355504654,1741207850880,-629.3,0.00040821,9]
[355504656,1741207850890,-520.64,0.00040821,9]
[355504659,1741207850899,-634.73,0.00040821,9]
[355504660,1741207850908,-667.75,0.00040821,9]
[355504662,1741207850918,-2881.98,0.00040821,9]
[355504664,1741207850927,-500.0,0.00040821,9]
[355504666,1741207850936,-402.22026865,0.00040821,9]
[355504669,1741207850946,-749.96,0.00040821,9]
[355504671,1741207850955,-4449.63,0.00040821,9]
[355504673,1741207850964,-2459.83,0.00040821,9]
[355504675,1741207850973,-500.0,0.00040821,9]
[355504677,1741207850982,-677.95,0.00040821,9]
[355504679,1741207850991,-216.89,0.00040995,2]
[355504680,1741207851000,-500.0,0.00041095,120]
[355504683,1741207851010,-500.0,0.00041095,120]
[355504684,1741207851019,-500.0,0.00041095,120]
[355504687,1741207851029,-500.0,0.00041095,120]
[355504689,1741207851039,-550.5,0.00041095,120]
[355504691,1741207851048,-513.7204187,0.00041095,120]
[355504693,1741207851058,-500.0,0.00041095,120]
[355504695,1741207851067,-500.0,0.00041095,120]
[355504697,1741207851076,-500.0,0.00041095,120]
[355504699,1741207851085,-500.0,0.00041095,120]
[355504701,1741207851095,-500.0,0.00041095,120]
[355504703,1741207851103,-500.0,0.00041095,120]
[355504705,1741207851112,-344.8,0.00041095,120]
[355504706,1741207851122,-500.0,0.00041095,120]
[355504708,1741207851131,-292.56347137,0.00041095,120]
[355504710,1741207851140,-500.0,0.00041095,120]
[355504712,1741207851149,-500.0,0.00041095,120]
[355504714,1741207851159,-500.0,0.00041095,120]
[355504717,1741207851168,-1798.42,0.00041095,120]
[355504719,1741207851177,-509.48,0.00041095,120]
[355504721,1741207851187,-514.64,0.00041095,120]
[355504723,1741207851196,-500.0,0.00041095,120]
[355504725,1741207851206,-596.78,0.00041095,120]
[355504727,1741207851215,-500.0,0.00041095,120]
[355504729,1741207851224,-500.0,0.00041095,120]
[355504731,1741207851234,-999.0,0.00041095,120]
[355504733,1741207851244,-500.0,0.00041095,120]
[355504735,1741207851253,-621.61,0.00041095,120]
[355504737,1741207851262,-500.0,0.00041095,120]
[355504739,1741207851272,-1970.49,0.00041095,120]
[355504741,1741207851282,-500.0,0.00041095,120]
[355504743,1741207851291,-500.0,0.00041095,120]
[355504745,1741207851300,-500.0,0.00041095,120]
[355504747,1741207851309,-1707.61,0.00041095,120]
[355504749,1741207851319,-1509.18,0.00041095,120]
[355504751,1741207851329,-3741.97,0.00041095,120]
[355504753,1741207851338,-1075.02,0.00041095,120]
[355504755,1741207851347,-1124.74,0.00041095,120]
[355504757,1741207851356,-26395.19,0.00041095,7]
[355504759,1741207851365,-1720.33,0.00041095,120]
[355504761,1741207851375,-500.0,0.00041095,120]
[355504763,1741207851384,-500.0,0.00041095,120]
[355504765,1741207851394,-905.36,0.00041095,120]
[355504767,1741207851403,-500.0,0.00041095,120]
[355504769,1741207851412,-629.3,0.00041095,120]
[355504771,1741207851421,-520.64,0.00041095,120]
[355504772,1741207851431,-634.73,0.00041095,120]
[355504775,1741207851440,-667.75,0.00041095,120]
[355504777,1741207851450,-2881.98,0.00041095,30]
[355504779,1741207851459,-500.0,0.00041095,120]
[355504781,1741207851468,-749.96,0.00041095,120]
[355504782,1741207851477,-4449.63,0.00041095,120]
[355504784,1741207851487,-2459.83,0.00041095,120]
[355504786,1741207851496,-500.0,0.00041095,120]
[355504789,1741207851506,-1257.71290333,0.00041114,28]
[355504791,1741207851516,-501.5318523,0.00041156,2]
[355504792,1741207851525,-358.234473,0.00041211,2]
[355504794,1741207851535,-6739.84651384,0.00041269,2]
[355504796,1741207851544,-500.0,0.00041369,120]
[355504799,1741207851554,-500.0,0.00041369,120]
[355504801,1741207851563,-500.0,0.00041369,120]
[355504802,1741207851572,-615.69149273,0.00041369,120]
[355504804,1741207851582,-550.5,0.00041369,120]
[355504806,1741207851592,-500.0,0.00041369,120]
[355504808,1741207851601,-500.0,0.00041369,120]
[355504810,1741207851610,-500.0,0.00041369,120]
[355504813,1741207851620,-500.0,0.00041369,120]
[355504815,1741207851629,-500.0,0.00041369,120]
[355504817,1741207851640,-151.0,0.00041369,120]
[355504818,1741207851650,-159.807271,0.00041369,120]
[355504820,1741207851659,-500.0,0.00041369,120]
[355504823,1741207851669,-500.0,0.00041369,120]
[355504825,1741207851678,-500.0,0.00041369,120]
[355504827,1741207851688,-500.0,0.00041369,120]
[355504829,1741207851698,-500.0,0.00041369,120]
[355504831,1741207851710,-1798.42,0.00041369,120]
[355504833,1741207851719,-509.48,0.00041369,120]
[355504835,1741207851728,-500.0,0.00041369,120]
[355504837,1741207851738,-500.0,0.00041369,120]
[355504839,1741207851750,-500.0,0.00041369,120]
[355504841,1741207851760,-492.30241146,0.00041369,120]
[355504843,1741207851774,-159.428086,0.00041369,120]
[355504845,1741207851786,-1970.49,0.00041369,120]
[355504847,1741207851795,-151.0,0.00041369,14]
[355504849,1741207851805,-500.0,0.00041369,120]
[355504851,1741207851814,-500.0,0.00041369,120]
[355504853,1741207851826,-500.0,0.00041369,120]
[355504855,1741207851838,-1707.61,0.00041369,120]
[355504857,1741207851847,-1509.18,0.00041369,120]
[355504859,1741207851856,-151.0,0.00041369,120]
[355504861,1741207851866,-3741.97,0.00041369,120]
[355504863,1741207851875,-1075.02,0.00041369,120]
[355504865,1741207851884,-1124.74,0.00041369,120]
[355504867,1741207851895,-26395.19,0.00041369,7]
[355504869,1741207851904,-1720.33,0.00041369,120]
[355504871,1741207851913,-500.0,0.00041369,120]
[355504873,1741207851922,-500.0,0.00041369,120]
[355504875,1741207851931,-905.36,0.00041369,120]
[355504877,1741207851941,-505.3,0.00041369,120]
[355504879,1741207851950,-629.3,0.00041369,120]
[355504881,1741207851959,-520.64,0.00041369,120]
[355504883,1741207851968,-634.73,0.00041369,120]
[355504885,1741207851977,-218.192164,0.00041369,120]
[355504887,1741207851987,-667.75,0.00041369,120]
[355504889,1741207851996,-500.0,0.00041369,120]
[355504891,1741207852005,-2881.98,0.00041369,30]
[355504893,1741207852016,-218.192164,0.00041369,120]
[355504895,1741207852025,-169.050235,0.00041369,120]
[355504897,1741207852035,-749.96,0.00041369,120]
[355504899,1741207852044,-169.050235,0.00041369,120]
[355504900,1741207852054,-4449.63,0.00041369,120]
[355504902,1741207852064,-2459.83,0.00041369,120]
[355504905,1741207852073,-500.0,0.00041369,120]
[355504907,1741207852083,-200.0,0.000414,120]
[355504908,1741207852092,-485.24824237,0.00041643,120]
[355504910,1741207852101,-500.0,0.00041643,120]
[355504912,1741207852110,-500.0,0.00041643,120]
[355504914,1741207852120,-550.5,0.00041643,120]
[355504916,1741207852130,-500.0,0.00041643,120]
[355504918,1741207852139,-631.0,0.00041643,120]
[355504920,1741207852148,-500.0,0.00041643,120]
[355504922,1741207852158,-500.0,0.00041643,120]
[355504924,1741207852167,-500.0,0.00041643,120]
[355504926,1741207852176,-451.62249716,0.00041643,120]
[355504928,1741207852185,-500.0,0.00041643,120]
[355504930,1741207852195,-180.115545,0.00041643,120]
[355504944,1741207852316,-500.0,0.00041643,120]
[355504946,1741207852327,-500.0,0.00041643,120]
[355504948,1741207852336,-1798.42,0.00041643,120]
[355504950,1741207852345,-509.48,0.00041643,120]
[355504952,1741207852355,-599.78532882,0.00041643,120]
[355504954,1741207852365,-999.0,0.00041643,120]
[355504956,1741207852374,-151.0,0.00041643,120]
[355504958,1741207852383,-500.0,0.00041643,120]
[355504960,1741207852392,-151.0,0.00041643,120]
[355504962,1741207852401,-151.0,0.00041643,120]
[355504964,1741207852410,-1970.49,0.00041643,120]
[355504966,1741207852419,-500.0,0.00041643,120]
[355504968,1741207852428,-500.0,0.00041643,120]
[355504970,1741207852437,-500.0,0.00041643,120]
[355504972,1741207852447,-1707.61,0.00041643,120]
[355504974,1741207852457,-1509.18,0.00041643,120]
[355504976,1741207852466,-3741.97,0.00041643,120]
[355504978,1741207852475,-1075.02,0.00041643,120]
[355504980,1741207852484,-1124.74,0.00041643,120]
[355504982,1741207852494,-26395.19,0.00041643,7]
[355504984,1741207852503,-1720.33,0.00041643,120]
[355504986,1741207852512,-500.0,0.00041643,120]
[355504988,1741207852524,-500.0,0.00041643,120]
[355504990,1741207852534,-905.36,0.00041643,120]
[355504992,1741207852543,-629.3,0.00041643,120]
[355504994,1741207852553,-520.64,0.00041643,120]
[355504996,1741207852563,-634.73,0.00041643,120]
[355504998,1741207852572,-667.75,0.00041643,120]
[355505000,1741207852582,-2881.98,0.00041643,30]
[355505002,1741207852591,-500.0,0.00041643,120]
[355505004,1741207852600,-749.96,0.00041643,120]
[355505006,1741207852610,-4449.63,0.00041643,120]
[355505008,1741207852620,-2459.83,0.00041643,120]
[355505010,1741207852629,-500.0,0.00041643,120]
[355505012,1741207852638,-500.0,0.00041917,120]
[355505014,1741207852647,-500.0,0.00041917,120]
[355505016,1741207852657,-550.5,0.00041917,120]
[355505018,1741207852666,-500.0,0.00041917,120]
[355505020,1741207852675,-500.0,0.00041917,120]
[355505022,1741207852685,-500.0,0.00041917,120]
[355505024,1741207852694,-500.0,0.00041917,120]
[355505026,1741207852705,-500.0,0.00041917,120]
[355505028,1741207852725,-151.0,0.00041917,120]
[355505030,1741207852736,-151.0,0.00041917,120]
[355505032,1741207852747,-500.0,0.00041917,120]
[355505034,1741207852756,-253.902956,0.00041917,120]
[355505036,1741207852766,-500.0,0.00041917,120]
[355505038,1741207852776,-151.0,0.00041917,120]
[355505040,1741207852787,-1798.42,0.00041917,120]
[355505042,1741207852796,-509.48,0.00041917,120]
[355505044,1741207852805,-500.0,0.00041917,120]
[355505046,1741207852815,-1970.49,0.00041917,120]
[355505048,1741207852825,-500.0,0.00041917,120]
[355505050,1741207852835,-500.0,0.00041917,120]
[355505052,1741207852845,-500.0,0.00041917,120]
[355505054,1741207852854,-1707.61,0.00041917,120]
[355505056,1741207852864,-1509.18,0.00041917,120]
[355505058,1741207852874,-3741.97,0.00041917,120]
[355505060,1741207852884,-1075.02,0.00041917,120]
[355505062,1741207852894,-1124.74,0.00041917,120]
[355505064,1741207852904,-26395.19,0.00041917,7]
[355505066,1741207852913,-1720.33,0.00041917,120]
[355505068,1741207852923,-500.0,0.00041917,120]
[355505070,1741207852933,-500.0,0.00041917,120]
[355505072,1741207852943,-905.36,0.00041917,120]
[355505074,1741207852952,-629.3,0.00041917,120]
[355505076,1741207852962,-520.64,0.00041917,120]
[355505078,1741207852971,-634.73,0.00041917,120]
[355505080,1741207852982,-667.75,0.00041917,120]
[355505082,1741207852992,-2881.98,0.00041917,30]
[355505084,1741207853001,-500.0,0.00041917,120]
[355505086,1741207853011,-749.96,0.00041917,120]
[355505088,1741207853021,-4449.63,0.00041917,120]
[355505090,1741207853031,-2459.83,0.00041917,120]
[355505092,1741207853041,-215.8,0.00041917,120]
[355505094,1741207853050,-1000.0,0.00041959,10]
[355505096,1741207853059,-269.3,0.00042,30]
[355505098,1741207853068,-155.7,0.00042,30]
[355505100,1741207853077,-378.0,0.00042,120]
[355505102,1741207853086,-378.0,0.00042,120]
[355505104,1741207853095,-1000.0,0.00042096,10]
[355505106,1741207853104,-500.0,0.00042191,120]
[355505108,1741207853113,-500.0,0.00042191,120]
[355505110,1741207853124,-151.0,0.00042191,120]
[355505112,1741207853133,-550.5,0.00042191,120]
[355505114,1741207853143,-500.0,0.00042191,120]
[355505116,1741207853152,-500.0,0.00042191,120]
[355505118,1741207853163,-500.0,0.00042191,120]
[355505120,1741207853173,-358.23126653,0.00042191,120]
[355505122,1741207853182,-500.0,0.00042191,120]
[355505124,1741207853192,-500.0,0.00042191,120]
[355505126,1741207853201,-1798.42,0.00042191,120]
[355505128,1741207853211,-509.48,0.00042191,120]
[355505130,1741207853221,-999.0,0.00042191,120]
[355505132,1741207853231,-500.0,0.00042191,120]
[355505134,1741207853240,-1970.49,0.00042191,120]
[355505136,1741207853249,-500.0,0.00042191,120]
[355505138,1741207853259,-500.0,0.00042191,120]
[355505140,1741207853269,-500.0,0.00042191,120]
[355505142,1741207853279,-1707.61,0.00042191,120]
[355505144,1741207853288,-1509.18,0.00042191,120]
[355505146,1741207853298,-3741.97,0.00042191,120]
[355505148,1741207853307,-1075.02,0.00042191,120]
[355505150,1741207853317,-1124.74,0.00042191,120]
[355505152,1741207853326,-26395.19,0.00042191,7]
[355505154,1741207853336,-1720.33,0.00042191,120]
[355505156,1741207853345,-548.24,0.00042191,120]
[355505158,1741207853355,-500.0,0.00042191,120]
[355505160,1741207853365,-905.36,0.00042191,120]
[355505162,1741207853375,-629.3,0.00042191,120]
[355505164,1741207853384,-520.64,0.00042191,120]
[355505166,1741207853394,-634.73,0.00042191,120]
[355505168,1741207853404,-667.75,0.00042191,120]
[355505170,1741207853413,-2881.98,0.00042191,30]
[355505172,1741207853423,-500.0,0.00042191,120]
[355505174,1741207853434,-749.96,0.00042191,120]
[355505176,1741207853447,-4449.63,0.00042191,120]
[355505179,1741207853456,-2459.83,0.00042191,120]
[355505181,1741207853466,-1000.0,0.00042233,10]
[355505183,1741207853475,-216.89,0.00042365,30]
[355505185,1741207853485,-1000.0,0.0004237,10]
[355505187,1741207853494,-160.0,0.00042455,3]
[355505189,1741207853504,-500.0,0.00042465,120]
[355505191,1741207853513,-500.0,0.00042465,120]
[355505193,1741207853524,-550.5,0.00042465,120]
[355505195,1741207853534,-291.58,0.00042465,120]
[355505197,1741207853543,-500.0,0.00042465,120]
[355505199,1741207853552,-500.0,0.00042465,120]
[355505201,1741207853561,-500.0,0.00042465,120]
[355505203,1741207853571,-500.0,0.00042465,120]
[355505205,1741207853580,-1798.42,0.00042465,120]
[355505207,1741207853590,-509.48,0.00042465,120]
[355505209,1741207853600,-500.0,0.00042465,120]
[355505211,1741207853609,-1970.49,0.00042465,120]
[355505213,1741207853619,-500.0,0.00042465,120]
[355505215,1741207853628,-500.0,0.00042465,120]
[355505217,1741207853638,-500.0,0.00042465,120]
[355505219,1741207853657,-1707.61,0.00042465,120]
[355505221,1741207853668,-1509.18,0.00042465,120]
[355505223,1741207853677,-3741.97,0.00042465,120]
[355505225,1741207853686,-1075.02,0.00042465,120]
[355505227,1741207853696,-1124.74,0.00042465,120]
[355505229,1741207853705,-26395.19,0.00042465,7]
[355505231,1741207853714,-1720.33,0.00042465,120]
[355505233,1741207853724,-500.0,0.00042465,120]
[355505235,1741207853733,-905.36,0.00042465,120]
[355505237,1741207853743,-629.3,0.00042465,120]
[355505239,1741207853754,-520.64,0.00042465,120]
[355505241,1741207853763,-634.73,0.00042465,120]
[355505242,1741207853775,-667.75,0.00042465,120]
[355505244,1741207853785,-500.0,0.00042465,120]
[355505246,1741207853794,-2881.98,0.00042465,30]
[355505248,1741207853804,-749.96,0.00042465,120]
[355505250,1741207853813,-4449.63,0.00042465,120]
[355505252,1741207853823,-2459.83,0.00042465,120]
[355505254,1741207853833,-416.66666667,0.00042507,10]
[355505256,1741207853842,-1000.0,0.00042507,10]
[355505258,1741207853852,-1000.0,0.00042644,10]
[355505260,1741207853861,-150.0,0.000427,30]
[355505262,1741207853870,-500.0,0.00042739,120]
[355505264,1741207853880,-500.0,0.00042739,120]
[355505266,1741207853889,-550.5,0.00042739,120]
[355505268,1741207853898,-500.0,0.00042739,120]
[355505270,1741207853908,-500.0,0.00042739,120]
[355505272,1741207853917,-500.0,0.00042739,120]
[355505274,1741207853926,-500.0,0.00042739,120]
[355505276,1741207853936,-1798.42,0.00042739,120]
[355505278,1741207853945,-509.48,0.00042739,120]
[355505280,1741207853955,-999.0,0.00042739,120]
[355505282,1741207853964,-151.0,0.00042739,120]
[355505284,1741207853973,-500.0,0.00042739,120]
[355505287,1741207853984,-151.0,0.00042739,120]
[355505288,1741207853993,-151.0,0.00042739,120]
[355505291,1741207854003,-1970.49,0.00042739,120]
[355505292,1741207854012,-151.0,0.00042739,14]
[355505294,1741207854022,-500.0,0.00042739,120]
[355505296,1741207854031,-500.0,0.00042739,120]
[355505299,1741207854040,-500.0,0.00042739,120]
[355505301,1741207854050,-1707.61,0.00042739,120]
[355505303,1741207854060,-1509.18,0.00042739,120]
[355505305,1741207854069,-151.0,0.00042739,120]
[355505306,1741207854079,-3741.97,0.00042739,120]
[355505309,1741207854096,-1075.02,0.00042739,120]
[355505311,1741207854105,-1124.74,0.00042739,120]
[355505313,1741207854114,-26395.19,0.00042739,7]
[355505315,1741207854124,-1720.33,0.00042739,120]
[355505316,1741207854133,-500.0,0.00042739,120]
[355505319,1741207854143,-905.36,0.00042739,120]
[355505320,1741207854152,-629.3,0.00042739,120]
[355505322,1741207854161,-520.64,0.00042739,120]
[355505324,1741207854171,-634.73,0.00042739,120]
[355505326,1741207854180,-218.192164,0.00042739,120]
[355505328,1741207854190,-667.75,0.00042739,120]
[355505330,1741207854199,-218.192164,0.00042739,120]
[355505332,1741207854208,-550.11557596,0.00042739,120]
[355505334,1741207854217,-2881.98,0.00042739,30]
[355505336,1741207854227,-169.050235,0.00042739,120]
[355505338,1741207854236,-749.96,0.00042739,120]
[355505340,1741207854245,-169.050235,0.00042739,120]
[355505342,1741207854254,-4449.63,0.00042739,120]
[355505344,1741207854263,-2459.83,0.00042739,120]
[355505346,1741207854273,-1000.0,0.00042781,10]
[355505348,1741207854282,-153.48,0.000428,33]
[355505350,1741207854291,-153.48,0.000428,33]
[355505352,1741207854301,-153.48,0.000428,33]
[355505354,1741207854311,-153.48,0.000428,33]
[355505356,1741207854320,-153.48,0.000428,33]
[355505358,1741207854329,-153.48,0.000428,33]
[355505359,1741207854339,-1000.0,0.00042918,10]
[355505360,1741207854348,-1300.9049,0.0004294,16]
[355505361,1741207854357,-1000.0,0.0004296,16]
[355505362,1741207854366,-1000.0,0.0004298,16]
[355505363,1741207854376,-1071.059062,0.0004298,16]
[355505364,1741207854386,-300.0,0.00043,22]
[355505365,1741207854395,-1000.0,0.00043,16]
[355505366,1741207854404,-1000.0,0.00043,16]
[355505367,1741207854413,-593.69083763,0.00043013,120]
[355505368,1741207854423,-500.0,0.00043013,120]
[355505370,1741207854432,-550.5,0.00043013,120]
[355505372,1741207854441,-500.0,0.00043013,120]
[355505374,1741207854450,-500.0,0.00043013,120]
[355505376,1741207854460,-151.0,0.00043013,120]
[355505378,1741207854469,-500.0,0.00043013,120]
[355505380,1741207854480,-619.73341775,0.00043013,120]
[355505382,1741207854494,-151.0,0.00043013,120]
[355505384,1741207854504,-1798.42,0.00043013,120]
[355505386,1741207854514,-509.48,0.00043013,120]
[355505388,1741207854525,-500.0,0.00043013,120]
[355505390,1741207854535,-1970.49,0.00043013,120]
[355505392,1741207854544,-500.0,0.00043013,120]
[355505394,1741207854554,-500.0,0.00043013,120]
[355505396,1741207854563,-500.0,0.00043013,120]
[355505398,1741207854573,-1707.61,0.00043013,120]
[355505400,1741207854583,-1509.18,0.00043013,120]
[355505402,1741207854592,-3741.97,0.00043013,120]
[355505404,1741207854602,-1075.02,0.00043013,120]
[355505406,1741207854611,-1124.74,0.00043013,120]